bitfinex-derivatives/quotes_ETHF0:USTF0_20251021
["timestamp","ask_amount","ask_price","bid_price","bid_amount"]
[1761072938898,4.33074669,4015.1,4014.5,3.3341]
[1761072938899,0.77276669,4015.1,4014.5,3.3341]
[1761072939100,0.77276669,4015.1,4014.5,0.8899]
[1761072939101,0.4482,4014.6,4014.5,0.8899]
[1761072939414,0.4482,4014.6,4014.5,4.54591]
[1761072939619,1.12039,4015.0,4014.5,4.54591]
[1761072939620,0.67360669,4015.1,4015.0,0.8899]
[1761072941412,0.67360669,4015.1,4015.0,1.33805]
[1761072942114,0.67109,4014.7,4014.6,0.5454]
[1761072942410,0.67109,4014.7,4014.6,0.7636]
[1761072942606,0.90010669,4015.1,4015.0,0.8899]
[1761072945608,1.22090669,4015.1,4015.0,0.5356]
[1761072945807,1.22090669,4015.1,4015.0,0.3174]
[1761072946007,0.6711,4014.6,4014.5,3.7803]
[1761072946514,0.6711,4014.6,4014.5,4.54591]
[1761072947411,0.4482,4014.6,4014.5,4.54591]
[1761072947910,0.67360669,4015.1,4015.0,0.8899]
[1761072949406,0.22546669,4015.1,4015.0,0.8899]
[1761072949711,0.67360669,4015.1,4015.0,4.0977]
[1761072950211,2.1136525,4015.1,4015.0,3.7434]
[1761072950511,1.41534796,4015.1,4015.0,0.5356]
[1761072950713,1.41534796,4015.1,4015.0,0.6719]
[1761072951208,1.41534796,4015.1,4015.0,0.5356]
[1761072951412,1.41534796,4015.1,4015.0,0.6719]
[1761072951604,1.41534796,4015.1,4015.0,0.8898]
[1761072951808,1.09454796,4015.1,4015.0,0.8898]
[1761072953311,0.90010669,4015.1,4015.0,0.8898]
[1761072956411,1.79551777,4015.1,4015.0,0.8898]
[1761072956611,2.11411777,4015.1,4015.0,0.8898]
[1761072956914,2.11411777,4015.1,4015.0,0.3174]
[1761072957417,0.90119,4014.7,4014.6,3.6415]
[1761072957609,0.44819,4014.7,4014.6,3.6415]
[1761072957916,0.44819,4014.7,4014.6,4.4066]
[1761072958716,1.5698032,4015.0,4014.9,0.7506]
[1761072958914,1.7966032,4015.0,4014.9,0.7506]
[1761072959510,2.1152032,4015.0,4014.9,0.7506]
[1761072960918,0.44819,4014.7,4014.6,3.87179]
[1761072961118,1.21979,4014.7,4014.6,3.4236]
[1761072961516,1.21979,4014.7,4014.6,3.7405]
[1761072961818,1.21979,4014.7,4014.6,3.9584]
[1761072962122,1.5698032,4015.0,4014.9,1.19877]
[1761072962418,0.67435,4015.0,4014.9,1.19877]
[1761072963020,0.67435,4015.0,4014.9,0.7506]
[1761072963220,0.90115,4015.0,4014.9,0.7506]
[1761072963413,1.21975,4015.0,4014.9,0.7506]
[1761072963611,0.90115,4015.0,4014.9,0.7506]
[1761072964323,1.21975,4015.0,4014.9,0.5327]
[1761072964718,1.21975,4015.0,4014.9,0.3169]
[1761072965120,1.21975,4015.0,4014.9,0.5327]
[1761072967816,1.21975,4015.0,4014.9,0.7506]
[1761072969826,0.90115,4015.0,4014.9,0.7506]
[1761072971525,1.21975,4015.0,4014.9,0.7506]
[1761072971729,1.21975,4015.0,4014.9,0.3169]
[1761072972226,1.21979,4014.7,4014.6,3.7405]
[1761072972932,1.21979,4014.7,4014.6,3.9584]
[1761072973127,0.90119,4014.7,4014.6,3.9584]
[1761072973829,0.90115,4015.0,4014.9,0.7506]
[1761072974025,1.21975,4015.0,4014.9,0.7506]
[1761072974839,1.21975,4015.0,4014.9,0.3169]
[1761072975131,2.1152032,4015.0,4014.9,0.3169]
[1761072975734,2.1152032,4015.0,4014.9,0.5327]
[1761072976727,2.1152032,4015.0,4014.9,0.3169]
[1761072976922,0.7668,4014.6,4014.5,0.98344242]
[1761072977131,1.2198,4014.6,4014.5,1.19924242]
[1761072977636,1.2198,4014.6,4014.5,1.55344242]
[1761072977837,0.4482,4014.6,4014.5,2.00165242]
[1761072979943,0.6743,4014.6,4014.5,1.55344242]
[1761072980143,1.2426,4014.6,4014.5,0.98344242]
[1761072980344,1.2426,4014.6,4014.5,1.20534242]
[1761072980740,1.2426,4014.6,4014.5,1.57144242]
[1761072981137,1.2426,4014.6,4014.5,0.3169]
[1761072981733,1.14241,4014.5,4014.4,3.2078]
[1761072982034,0.4548,4014.0,4013.9,0.89164242]
[1761072982244,0.90307,4014.0,4013.9,0.90338]
[1761072982630,0.90307,4014.0,4013.9,1.23638]
[1761072982836,0.90307,4014.0,4013.9,0.7881]
[1761072983337,0.90307,4014.0,4013.9,1.23638]
[1761072983541,9.64625,4014.2,4014.0,0.78127]
[1761072983745,9.198,4014.2,4014.1,0.7881]
[1761072984043,9.64624,4014.2,4014.1,0.7881]
[1761072984741,9.86904,4014.2,4014.1,0.7881]
[1761072985147,10.20644,4014.2,4014.1,0.7881]
[1761072985348,9.86904,4014.2,4014.1,0.7881]
[1761072988748,0.8954532,4014.7,4014.0,0.58437]
[1761072988749,9.86699,4014.7,4014.6,0.7881]
[1761072990336,9.4188,4014.7,4014.6,0.7881]
[1761072990537,0.68016,4015.0,4014.9,0.7881]
[1761072990736,9.64416,4015.0,4014.9,0.7881]
[1761072990952,9.86696,4015.0,4014.9,0.7881]
[1761072991150,0.44817,4014.9,4014.8,3.2078]
[1761072991353,1.24037,4014.9,4014.8,3.2078]
[1761072991852,0.4548,4014.9,4014.8,4.44408]
[1761072992644,0.90297,4014.9,4014.8,4.44408]
[1761072993952,0.90297,4014.9,4014.8,1.23628]
[1761072994952,9.86497,4014.9,4014.8,1.23628]
[1761072995349,10.20237,4014.9,4014.8,0.7881]
[1761072997247,1.24038,4014.8,4014.7,3.2078]
[1761072997444,2.13546414,4014.8,4014.7,3.2078]
[1761072997844,11.09646414,4014.8,4014.7,3.2078]
[1761072998046,11.09646414,4014.8,4014.7,3.5408]
[1761072999248,11.09646414,4014.8,4014.7,3.7659]
[1761072999455,11.09646414,4014.8,4014.7,3.9959]
[1761073001058,11.09646414,4014.8,4014.7,3.7659]
[1761073001450,10.75906414,4014.8,4014.7,3.9959]
[1761073002853,11.09646414,4014.8,4014.7,3.9959]
[1761073003361,2.13546414,4014.8,4014.7,3.9959]
[1761073003558,11.09446414,4014.8,4014.7,3.9959]
[1761073003758,11.09446414,4014.8,4014.7,3.7659]
[1761073004060,11.09446414,4014.8,4014.7,3.5408]
[1761073006057,10.75706414,4014.8,4014.7,3.9959]
[1761073006361,9.86198,4014.8,4014.7,3.9959]
[1761073008062,10.19938,4014.8,4014.7,3.9959]
[1761073008261,9.86198,4014.8,4014.7,3.9959]
[1761073009860,10.19938,4014.8,4014.7,3.9959]
[1761073017262,11.09446414,4014.8,4014.7,3.5408]
[1761073017656,11.09446414,4014.8,4014.7,3.7667]
[1761073017857,11.09446414,4014.8,4014.7,3.2078]
[1761073018258,11.09446414,4014.8,4014.7,3.555]
[1761073018467,11.09446414,4014.8,4014.7,3.7809]
[1761073018670,11.09446414,4014.8,4014.7,3.9934]
[1761073021267,11.09446414,4014.8,4014.7,3.7809]
[1761073026178,10.19938,4014.8,4014.7,3.7809]
[1761073026363,11.0960512,4014.8,4014.7,3.7809]
[1761073031268,9.8556712,4014.8,4014.7,3.9934]
[1761073031470,9.7522,4014.8,4014.7,3.9934]
[1761073031668,10.20038,4014.8,4014.7,3.9934]
[1761073032070,9.4171,4014.8,4014.7,3.9934]
[1761073032267,9.86528,4014.8,4014.7,3.9934]
[1761073033380,10.06015966,4014.8,4014.7,3.9934]
[1761073033873,10.39525966,4014.8,4014.7,3.9934]
[1761073034276,0.42617966,4014.8,4014.7,4.44159]
[1761073034479,0.19487966,4014.8,4014.7,4.44159]
[1761073034869,9.39871669,4015.1,4014.7,4.44159]
[1761073034870,0.00256669,4015.1,4015.0,0.915]
[1761073035067,0.1974177,4015.1,4015.0,1.36315]
[1761073035275,0.00256669,4015.1,4015.0,1.36315]
[1761073035474,0.00256669,4015.1,4015.0,6.36315]
[1761073035677,8.946,4015.7,4015.6,0.44809]
[1761073035980,9.39406,4015.9,4015.8,1.23367]
[1761073036180,9.58874744,4015.9,4015.8,1.23367]
[1761073036379,9.82004744,4015.9,4015.8,1.23367]
[1761073036577,9.58874744,4015.9,4015.8,1.23367]
[1761073036774,0.42788244,4015.9,4015.8,1.23367]
[1761073036975,0.89688665,4015.9,4015.8,6.23367]
[1761073037172,0.908045,4015.9,4015.8,0.7856]
[1761073037374,0.44808,4015.7,4015.6,3.2078]
[1761073037570,1.24131,4015.4,4015.3,0.7856]
[1761073037974,0.90621,4015.4,4015.3,0.7856]
[1761073038273,0.90621,4015.4,4015.0,3.3372]
[1761073038274,10.07418665,4015.9,4015.7,0.3472]
[1761073038477,10.74903665,4015.9,4015.8,0.7856]
[1761073038774,1.80303665,4015.9,4015.8,0.7856]
[1761073039276,0.233195,4015.9,4015.8,0.7856]
[1761073039475,0.001895,4015.9,4015.8,1.23367]
[1761073040479,0.449945,4015.9,4015.8,1.23367]
[1761073040883,0.001895,4015.9,4015.8,1.23367]
[1761073041073,10.15588665,4016.4,4015.8,0.88647]
[1761073041273,10.47948665,4016.4,4016.3,0.556]
[1761073041879,10.80438665,4016.4,4016.3,0.556]
[1761073042074,10.1575,4016.4,4016.3,0.55833433]
[1761073042280,10.15961478,4016.4,4016.3,0.55833433]
[1761073042480,10.15961478,4016.4,4016.3,0.78913433]
[1761073043178,10.15961478,4016.4,4016.3,0.55833433]
[1761073043583,10.15961478,4016.4,4016.3,0.00233433]
[1761073056091,1.21289,4015.6,4015.1,3.2078]
[1761073056396,0.88803,4015.2,4015.1,3.6619]
[1761073056798,0.88803,4015.2,4015.1,3.9946]
[1761073056998,0.88803,4015.2,4015.1,4.44521979]
[1761073057492,1.21293,4015.2,4015.1,3.54297979]
[1761073057691,1.21293,4015.2,4015.1,0.00247979]
[1761073058597,1.21293,4015.2,4015.1,0.55847979]
[1761073061498,1.21293,4015.2,4015.1,0.33517979]
[1761073062201,1.21293,4015.2,4015.1,0.00247979]
[1761073064200,1.21299,4014.7,4014.6,3.7638]
[1761073064506,1.21299,4014.7,4014.6,3.9946]
[1761073065301,1.21299,4014.7,4014.6,3.99764053]
[1761073065497,0.88809,4014.7,4014.6,3.99764053]
[1761073066200,1.21299,4014.7,4014.6,3.99764053]
[1761073066701,1.21299,4014.7,4014.6,3.54354053]
[1761073066894,4.42079,4014.7,4014.6,0.00304053]
[1761073067293,0.44831,4013.6,4013.5,1.35261285]
[1761073067500,1.21311,4013.6,4013.5,0.556]
[1761073067802,1.21311,4013.6,4013.5,0.9216]
[1761073068005,0.4399,4013.6,4013.5,0.9216]
[1761073068197,0.2193,4013.6,4013.5,0.92462337]
[1761073068598,0.2193,4013.6,4013.5,1.37294337]
[1761073068801,0.66761,4013.6,4013.5,0.92462337]
[1761073069908,0.3249,4013.9,4013.8,0.7868]
[1761073069909,0.2193,4013.9,4013.8,0.7868]
[1761073070208,9.59858,4013.9,4013.8,0.7868]
[1761073070405,10.14408,4013.9,4013.8,0.556]
[1761073070912,10.14408,4013.9,4013.8,0.7868]
[1761073072107,10.14408,4013.9,4013.8,0.556]
[1761073072305,10.14408,4013.9,4013.8,0.3327]
[1761073072507,1.23781,4013.6,4013.5,0.22622337]
[1761073072701,0.89271,4013.6,4013.5,0.57362337]
[1761073072907,0.89271,4013.6,4013.5,1.35334337]
[1761073073408,0.89271,4013.6,4013.5,0.90502337]
[1761073073610,0.89271,4013.6,4013.5,1.35334337]
[1761073074709,9.82371,4013.6,4013.5,1.35334337]
[1761073075110,9.82371,4013.6,4013.5,0.90502337]
[1761073076012,10.16881,4013.6,4013.5,0.90502337]
[1761073076514,9.3754,4013.6,4013.5,1.35334337]
[1761073076704,9.1626,4013.6,4013.5,1.35334337]
[1761073077206,9.82371,4013.6,4013.5,1.35334337]
[1761073077408,10.16881,4013.6,4013.5,1.35334337]
[1761073078009,10.16881,4013.6,4013.5,0.90502337]
[1761073078420,10.16881,4013.6,4013.5,0.55762337]
[1761073078613,10.16881,4013.6,4013.5,1.35334337]
[1761073079313,9.82371,4013.6,4013.5,1.35334337]
[1761073079516,10.16881,4013.6,4013.5,0.90502337]
[1761073081820,9.61091,4013.6,4013.5,1.35334337]
[1761073082005,1.23776,4014.1,4014.0,0.6888]
[1761073082210,10.16676,4014.1,4014.0,0.5546]
[1761073082406,1.23779,4013.8,4013.7,0.5546]
[1761073082912,1.23779,4013.8,4013.5,0.00302337]
[1761073082913,1.23781,4013.6,4013.5,0.00302337]
[1761073083215,4.44561,4013.6,4013.5,0.55762337]
[1761073083515,4.44561,4013.6,4013.5,0.69182337]
[1761073083516,1.23781,4013.6,4013.5,0.69182337]
[1761073083713,1.23781,4013.6,4013.5,0.55762337]
[1761073084118,1.23781,4013.6,4013.5,0.33442337]
[1761073084316,1.23781,4013.6,4013.5,0.00302337]
[1761073085122,1.23781,4013.6,4013.5,0.33442337]
[1761073086421,1.23781,4013.6,4013.5,0.00302337]
[1761073089624,1.23781,4013.6,4013.5,0.55762337]
[1761073091622,0.4444,4013.6,4013.5,1.35331337]
[1761073091827,0.2316,4013.9,4013.8,0.7678]
[1761073092023,9.60584,4013.9,4013.8,0.7678]
[1761073092528,9.60584,4013.9,4013.8,1.21605]
[1761073093324,9.81864,4013.9,4013.8,1.21605]
[1761073093728,10.16374,4013.9,4013.8,0.7678]
[1761073094232,1.23778,4013.6,4013.5,0.00302337]
[1761073094430,10.16378,4013.6,4013.5,0.00302337]
[1761073096239,10.16378,4013.6,4013.5,0.55762337]
[1761073096446,10.16278,4013.6,4013.5,0.55762337]
[1761073096634,10.16278,4013.6,4013.5,0.90502337]
[1761073097733,9.81768,4013.6,4013.5,1.35330337]
[1761073098339,10.16278,4013.6,4013.5,1.35330337]
[1761073098934,1.23778,4013.6,4013.5,0.90502337]
[1761073099140,10.16278,4013.6,4013.5,0.90502337]
[1761073099732,1.23778,4013.6,4013.5,1.35330337]
[1761073100534,0.2316,4013.6,4013.5,1.35330337]
[1761073100734,0.89172381,4014.3,4014.1,0.3325]
[1761073100936,0.44817,4014.6,4014.5,0.9172]
[1761073101141,0.65867,4014.6,4014.5,0.9172]
[1761073101946,0.88797,4014.6,4014.5,0.9172]
[1761073102239,1.23319,4014.3,4014.2,3.4324]
[1761073102633,1.23319,4014.3,4014.2,3.7649]
[1761073102836,0.88799,4014.3,4014.2,4.43901]
[1761073103437,1.23316,4014.6,4014.5,0.783]
[1761073103648,1.23316,4014.6,4014.5,0.9172]
[1761073105236,1.23316,4014.6,4014.5,0.5571]
[1761073107336,1.23316,4014.6,4014.5,0.3325]
[1761073107543,1.23319,4014.3,4014.2,3.4324]
[1761073107851,0.88799,4014.3,4014.2,3.6583]
[1761073108049,0.88799,4014.3,4014.2,3.9908]
[1761073109048,0.88799,4014.3,4014.2,4.439]
[1761073110246,0.65866,4014.7,4014.3,0.44819]
[1761073110450,0.44816,4014.6,4014.5,0.9172]
[1761073110845,0.65866,4014.6,4014.5,0.9172]
[1761073112555,0.44815,4014.7,4014.6,0.783]
[1761073112756,0.65865,4014.7,4014.6,0.783]
[1761073113543,0.65865,4014.7,4014.6,1.23116]
[1761073113952,0.65865,4014.7,4014.6,0.783]
[1761073114549,0.65865,4014.7,4014.6,3.9908]
[1761073115961,0.44815,4014.7,4014.6,3.9908]
[1761073116159,0.44815,4014.7,4014.6,4.43896]
[1761073116553,0.65865,4014.7,4014.6,4.43896]
[1761073117358,9.1285,4014.9,4014.8,0.5571]
[1761073117552,9.1285,4014.9,4014.8,0.783]
[1761073118262,9.80593,4014.9,4014.8,0.783]
[1761073118961,10.15113,4014.9,4014.8,0.783]
[1761073121968,9.80593,4014.9,4014.8,0.783]
[1761073122259,10.15113,4014.9,4014.8,0.783]
[1761073122668,9.80593,4014.9,4014.8,0.783]
[1761073123169,9.3578,4014.9,4014.8,0.783]
[1761073123763,10.15112,4014.9,4014.8,0.783]
[1761073123975,0.88794,4014.8,4014.7,0.5571]
[1761073124468,1.23314,4014.8,4014.7,0.5571]
[1761073126159,0.7934,4014.2,4013.8,0.66181285]
[1761073126361,9.1225,4014.4,4014.3,0.4505]
[1761073126667,9.1225,4014.4,4014.3,0.783]
[1761073126855,9.79998,4014.4,4014.3,0.783]
[1761073127063,10.14518,4014.4,4014.3,0.783]
[1761073127360,0.2293,4014.9,4014.8,0.2246]
[1761073127555,0.4398,4014.9,4014.8,0.783]
[1761073127756,0.2105,4014.9,4014.8,0.783]
[1761073127966,0.2105,4014.9,4014.8,1.23114]
[1761073128562,0.2105,4015.2,4014.8,0.4505]
[1761073128776,1.10222381,4016.0,4015.9,0.2246]
[1761073129071,0.97727582,4016.0,4015.9,0.783]
[1761073129259,0.4398,4016.0,4015.9,0.783]
[1761073129862,0.785,4016.0,4015.9,0.783]
[1761073130563,0.4398,4016.0,4015.9,0.783]
[1761073134076,0.8878,4016.0,4015.9,0.783]
[1761073135376,0.4398,4016.0,4015.9,0.783]
[1761073135571,0.2105,4016.0,4015.9,0.783]
[1761073136175,0.22051478,4016.4,4016.3,0.4408]
[1761073136375,0.22051478,4016.4,4016.3,0.7837]
[1761073136678,1.22777478,4016.4,4016.3,0.7837]
[1761073136880,0.77981478,4016.4,4016.3,0.7837]
[1761073137078,0.44061478,4016.4,4016.3,0.7837]
[1761073137876,0.00211478,4016.4,4016.3,1.23167]
[1761073139974,0.00211478,4016.4,4016.3,0.7837]
[1761073140174,0.00211478,4016.4,4016.3,1.23167]
[1761073140683,0.00211478,4016.4,4016.3,6.23167]
[1761073140884,0.00211478,4016.4,4016.3,1.23167]
[1761073141180,1.11012381,4017.7,4017.4,0.3429]
[1761073141482,0.2184,4017.7,4017.6,0.7837]
[1761073141782,0.022,4017.8,4017.7,0.3429]
[1761073142076,0.0243512,4017.8,4017.7,0.78594245]
[1761073142278,0.8020512,4017.8,4017.7,0.34514245]
[1761073142671,0.4628512,4017.8,4017.7,0.78594245]
[1761073143085,0.8020512,4017.8,4017.7,0.78594245]
[1761073143577,0.8020512,4017.8,4017.7,0.57204245]
[1761073144371,5.8020512,4017.8,4017.7,0.00224245]
[1761073146080,6.2498512,4017.8,4017.7,0.00224245]
[1761073146785,1.2498512,4017.8,4017.7,0.00224245]
[1761073151182,1.2498512,4017.8,4016.6,0.5698]
[1761073151183,1.22562,4016.7,4016.6,0.5698]
[1761073151582,0.7777,4016.5,4016.4,3.7776]
[1761073151781,0.4385,4016.5,4016.4,3.9915]
[1761073152286,0.4385,4016.5,4016.4,3.99459073]
[1761073153288,0.2184,4016.5,4016.4,3.99459073]
[1761073155699,0.88638,4017.1,4017.0,0.9221]
[1761073155902,0.44788,4017.1,4017.0,0.9221]
[1761073156391,0.66628,4017.1,4017.0,0.9221]
[1761073160714,4.43743,4017.6,4017.5,0.9302]
[1761073160911,13.33443,4017.6,4017.5,0.5724]
[1761073161213,13.33443,4017.6,4017.5,0.3473]
[1761073163504,0.78809,4017.0,4016.9,3.2078]
[1761073163815,0.67344,4016.6,4016.5,0.5848]
[1761073164013,0.44794,4016.6,4016.5,0.9321]
[1761073165116,0.44793,4016.8,4016.6,0.3473]
[1761073165312,0.44793,4016.8,4016.7,0.7937]
[1761073166521,0.88953,4016.8,4016.7,0.7937]
[1761073168315,1.22973,4016.8,4016.7,0.7937]
[1761073171321,0.88953,4016.8,4016.7,0.7937]
[1761073173214,1.22973,4016.8,4016.7,0.7937]
[1761073173722,0.88953,4016.8,4016.7,0.7937]
[1761073174021,1.22973,4016.8,4016.7,0.7937]
[1761073175520,1.22973,4016.8,4016.7,0.3473]
[1761073175713,1.01365,4016.5,4016.4,0.00309073]
[1761073175919,1.01365,4016.5,4016.4,0.44949073]
[1761073175920,0.67345,4016.5,4016.4,0.44949073]
[1761073176119,0.67345,4016.5,4016.4,0.79679073]
[1761073176424,1.22975,4016.5,4016.4,0.79679073]
[1761073179615,1.22975,4016.5,4016.4,0.57549073]
[1761073179816,1.22975,4016.5,4016.4,0.00309073]
[1761073180021,1.22975,4016.5,4016.4,0.79679073]
[1761073180316,10.12175,4016.5,4016.4,0.79679073]
[1761073182525,9.78155,4016.5,4016.4,0.79679073]
[1761073182720,10.12175,4016.5,4016.4,0.79679073]
[1761073184417,10.12175,4016.5,4016.4,0.57549073]
[1761073184618,10.12175,4016.5,4016.4,0.35039073]
[1761073185322,10.12175,4016.5,4016.4,0.00309073]
[1761073186324,10.12175,4016.5,4016.4,0.35039073]
[1761073186523,10.12175,4016.5,4016.4,0.57549073]
[1761073187121,9.78155,4016.5,4016.4,0.79679073]
[1761073190329,0.67345,4016.5,4016.4,0.79679073]
[1761073191522,1.22045,4016.5,4016.4,0.34119073]
[1761073191914,1.22045,4016.5,4016.4,0.56939073]
[1761073195828,1.22045,4016.5,4016.4,0.34119073]
[1761073196021,1.22045,4016.5,4016.4,0.00309073]
[1761073197212,1.22045,4016.5,4016.4,0.56939073]
[1761073197819,1.22045,4016.5,4016.4,0.00309073]
[1761073198021,1.32585,4016.5,4016.4,0.00309073]
[1761073198425,1.22045,4016.5,4016.4,0.56939073]
[1761073199129,1.22045,4016.5,4016.4,0.78749073]
[1761073199827,1.32585,4016.5,4016.4,0.00309073]
[1761073200328,0.7731,4015.6,4015.5,0.66181285]
[1761073200523,1.22119,4015.3,4015.2,0.3381]
[1761073200723,10.10719,4015.3,4015.2,0.3381]
[1761073200919,10.10719,4015.3,4015.2,0.5663]
[1761073201120,10.10719,4015.3,4015.2,0.7844]
[1761073201326,9.77629,4015.3,4015.2,0.78629678]
[1761073201526,0.215,4015.9,4015.5,0.1315]
[1761073201730,0.66299,4016.2,4016.1,0.7844]
[1761073201932,9.33399,4016.2,4016.1,0.7844]
[1761073202133,0.44799,4016.2,4016.1,0.7844]
[1761073202434,1.55843121,4016.7,4016.5,0.4696]
[1761073202627,4.88193681,4016.9,4016.5,0.9159]
[1761073202628,9.33394,4016.6,4016.5,0.9159]
[1761073202829,10.10704,4016.6,4016.5,0.3381]
[1761073203031,1.22113,4015.8,4015.7,0.2282]
[1761073203229,0.4422,4015.8,4015.7,0.4463]
[1761073203532,0.215,4015.8,4015.7,1.23245]
[1761073203830,0.44803,4015.9,4015.7,3.436]
[1761073204033,1.22113,4015.9,4015.8,0.5663]
[1761073204231,0.4422,4015.9,4015.8,1.23244]
[1761073204437,0.89019,4016.2,4016.1,0.7844]
[1761073204629,9.17799,4016.2,4016.1,0.7844]
[1761073204828,9.40519,4016.2,4016.1,0.7844]
[1761073205230,8.9572,4016.2,4016.1,0.7844]
[1761073205940,9.40519,4016.2,4016.1,0.7844]
[1761073206436,9.73609,4016.2,4016.1,0.7844]
[1761073206735,9.40519,4016.2,4016.1,0.7844]
[1761073207241,9.73609,4016.2,4016.1,0.5663]
[1761073207534,9.73609,4016.2,4016.1,0.3381]
[1761073209840,1.22115,4015.7,4015.6,0.3381]
[1761073210431,1.22115,4015.7,4015.6,0.5663]
[1761073211047,9.0609,4016.2,4015.6,3.6541]
[1761073211230,0.66299,4016.2,4016.1,0.7844]
[1761073211434,10.10509,4016.2,4016.1,0.7844]
[1761073212440,9.6571,4016.2,4015.5,1.24115631]
[1761073212639,0.89024,4015.8,4015.7,0.7844]
[1761073212943,1.22116,4015.6,4015.5,0.2282]
[1761073213145,1.22118,4015.4,4015.3,0.2282]
[1761073213338,0.89028,4015.4,4015.3,0.7844]
[1761073213538,0.4422,4015.4,4015.3,0.7844]
[1761073214248,0.4422,4015.4,4015.3,1.23249]
[1761073214441,0.99396,4015.7,4015.6,0.7844]
[1761073214646,1.22116,4015.7,4015.6,0.7844]
[1761073215850,0.7731,4015.5,4015.4,0.5663]
[1761073216042,1.22119,4015.3,4015.2,0.33999678]
[1761073216351,1.22119,4015.3,4015.2,0.56819678]
[1761073216552,0.7731,4015.3,4015.2,0.56819678]
[1761073217038,0.215,4015.3,4015.2,1.23440678]
[1761073217238,0.66304,4015.8,4015.7,0.5562]
[1761073217451,0.44804,4015.8,4015.7,0.4463]
[1761073217650,0.44804,4015.8,4015.7,0.89435]
[1761073217952,0.4422,4015.8,4015.7,0.7844]
[1761073218854,0.89024,4015.8,4015.7,0.7844]
[1761073219054,1.23564,4015.8,4015.7,0.7844]
[1761073220643,1.23564,4015.8,4015.7,1.23245]
[1761073221455,0.4422,4015.8,4015.7,1.23245]
[1761073221640,1.22514,4015.8,4015.7,0.7844]
[1761073222846,0.89024,4015.8,4015.7,0.7844]
[1761073223452,0.215,4015.8,4015.7,1.23245]
[1761073223754,0.66304,4015.8,4015.7,0.7844]
[1761073224648,0.89194,4015.8,4015.7,0.7844]
[1761073225747,1.22684,4015.8,4015.7,0.7844]
[1761073227252,1.22684,4015.8,4015.7,0.3381]
[1761073227553,1.22766,4015.6,4015.5,0.3286]
[1761073227755,0.89276,4015.6,4015.5,0.9083]
[1761073228159,0.4447,4015.6,4015.5,1.35637]
[1761073228463,0.44805,4015.7,4015.6,0.77666]
[1761073228756,0.44805,4015.7,4015.6,1.22276]
[1761073229357,0.44805,4015.7,4015.6,0.7747]
[1761073229557,0.66385,4015.7,4015.6,0.7747]
[1761073229754,1.22765,4015.7,4015.6,0.5599]
[1761073229945,0.7796,4015.7,4015.6,0.5599]
[1761073230149,1.22765,4015.7,4015.6,0.5599]
[1761073230454,1.22765,4015.7,4015.6,0.7747]
[1761073231057,0.89275,4015.7,4015.6,0.7747]
[1761073231555,0.3349,4016.1,4015.6,0.7747]
[1761073231760,0.44797,4016.4,4016.3,1.22268]
[1761073232156,0.89549121,4016.9,4016.8,0.44793]
[1761073232357,0.44788,4017.2,4017.1,0.7747]
[1761073232866,0.66368,4017.2,4017.1,0.7747]
[1761073233359,3.2078,4017.3,4017.1,1.22259]
[1761073233560,3.2078,4017.3,4017.2,0.7747]
[1761073234154,3.9874,4017.3,4017.2,0.5599]
[1761073236659,0.7796,4017.1,4017.0,0.3286]
[1761073236966,0.7796,4016.7,4016.6,0.5599]
[1761073238069,1.22754,4016.7,4016.6,0.5599]
[1761073241161,1.22754,4016.7,4016.6,0.3286]
[1761073241470,1.22755,4016.6,4016.5,3.2078]
[1761073242164,1.22755,4016.6,4016.5,3.7677]
[1761073242363,1.22755,4016.6,4016.5,3.9013]
[1761073242556,1.22755,4016.6,4016.5,4.1161]
[1761073243669,1.22755,4016.6,4016.5,3.7677]
[1761073245771,1.22755,4016.6,4016.5,4.1161]
[1761073245968,0.66375,4016.6,4016.5,4.56406]
[1761073246170,0.2158,4016.6,4016.5,4.56406]
[1761073246471,0.2158,4017.0,4016.9,0.7747]
[1761073246664,9.0908,4017.0,4016.9,0.7747]
[1761073246965,10.1025,4017.0,4016.9,0.7747]
[1761073248365,10.1025,4017.0,4016.9,0.5599]
[1761073248564,0.66373,4016.8,4016.7,0.3286]
[1761073248871,0.89263,4016.8,4016.7,0.3286]
[1761073249058,1.22753,4016.8,4016.7,0.5599]
[1761073249460,0.7796,4016.8,4016.7,0.5599]
[1761073250372,0.2158,4016.1,4016.0,0.66159631]
[1761073250564,0.4447,4015.6,4015.3,0.3286]
[1761073250867,0.775,4015.3,4015.2,0.34899678]
[1761073251075,0.775,4015.3,4015.2,0.57019678]
[1761073251364,0.775,4015.3,4015.2,0.00189678]
[1761073251966,0.3184,4014.3,4014.2,0.3471]
[1761073252163,0.3184,4014.3,4014.1,0.5683]
[1761073252164,0.775,4014.2,4014.1,0.5683]
[1761073252362,0.775,4014.2,4014.1,0.7937]
[1761073252868,0.77782198,4014.2,4014.1,0.79552446]
[1761073253174,0.77782198,4014.2,4014.0,0.1336]
[1761073253175,0.775,4013.6,4013.5,0.3471]
[1761073253365,0.2298,4012.8,4012.7,0.2212]
[1761073253564,0.775,4012.8,4012.7,0.2212]
[1761073253970,7.68732,4013.3,4012.6,0.5683]
[1761073253971,0.775,4012.7,4012.6,0.5683]
[1761073254174,0.775,4012.7,4012.6,0.57039879]
[1761073254674,0.2298,4012.7,4012.6,0.79579879]
[1761073254875,0.5482,4013.1,4012.7,0.3471]
[1761073255074,0.2298,4013.1,4013.0,0.9223]
[1761073255276,0.775,4013.1,4013.0,0.5683]
[1761073256771,3.2078,4013.6,4013.5,0.9223]
[1761073256979,3.2078,4014.1,4014.0,0.9223]
[1761073257274,3.4376,4014.1,4014.0,0.9223]
[1761073258078,3.6644,4014.1,4014.0,0.9223]
[1761073258383,3.9828,4014.1,4014.0,0.9223]